Cogmind - Beta 13 @@@ ROGUE MODE // 2024.04.12 @ 19:40:55 Player: Edstelm Result: Destroyed by Y-45 Defender with Heavy Assault Rifle Performance ------------- Evolutions (1) 500 Regions Visited (3) 600 Robots Destroyed (20) 100 Value Destroyed (449) 449 Prototype IDs (0) 0 Alien Tech Used (0) 0 Bonus (0) 0 TOTAL SCORE: 1649 Bonus ------- None Cogmind --------- Core Integrity 0/400 Matter 238/300 Energy 98/100 System Corruption 0% Temperature Cool (27) Movement Core (50) Location -9/Materials Parts ------- > --- POWER (1) -------- (None) > --- PROPULSION (2) --- (None) > --- UTILITY (4) ------ Visual Processing Unit Signal Interpreter Improved Targeting Computer > --- WEAPON (2) ------- (None) > --- INVENTORY (5) ---- Cooling System Medium Matter Pod (0) Peak State ------------ > --- POWER ------------ Light Ion Engine > --- PROPULSION ------- Flight Unit Flight Unit > --- UTILITY ---------- Weight Redist. System Structural Scanner Sensor Array Signal Interpreter > --- WEAPON ----------- Small Laser Heavy Assault Rifle > --- INVENTORY -------- Visual Processing Unit Light Assault Rifle Datajack [Rating: 11] Favorites ----------- Power Light Ion Engine Engine Light Ion Engine Propulsion Flight Unit Wheel Wheel Flight Unit Flight Unit Utility Signal Interpreter Device Seismic Detector Processor Signal Interpreter Protection Light Armor Plating Weapon Light Assault Rifle Energy Gun Small Laser Energy Cannon Beam Cannon Ballistic Gun Light Assault Rifle Special Melee Weapon Datajack Build | -11 -10 -10 -9 ------- Run | Yrd Mat Min Mat Slots Evolved 2 | . . . 2 Power . | . . . . Propulsion . | . . . . Utility 2 | . . . 2 Weapon . | . . . . Parts Attached 45 | 6 30 1 8 Power 5 | 1 4 . . Engine 5 | 1 4 . . Core . | . . . . Reactor . | . . . . Propulsion 11 | 2 9 . . Treads . | . . . . Leg . | . . . . Wheel 9 | 2 7 . . Hover . | . . . . Flight 2 | . 2 . . Utility 14 | 1 8 . 5 Device 7 | 1 4 . 2 Storage . | . . . . Processor 4 | . 1 . 3 Hackware . | . . . . Protection 3 | . 3 . . Artifact . | . . . . Weapon 15 | 2 9 1 3 Energy Gun 2 | 1 . 1 . Energy Cannon 4 | . 4 . . Ballistic Gun 6 | 1 3 . 2 Ballistic Cannon . | . . . . Launcher . | . . . . Special Weapon . | . . . . Impact Weapon . | . . . . Slashing Weapon . | . . . . Piercing Weapon . | . . . . Special Melee Weapon 3 | . 2 . 1 Unidentified Prototypes . | . . . . Parts Lost 16 | . 4 1 11 Power 2 | . 1 . 1 Propulsion 4 | . 2 . 2 Utility 5 | . 1 . 4 Weapon 5 | . . 1 4 Highest Loss Streak 9 | . 4 1 9 To Critical Strikes . | . . . . Average Slot Usage (%) 87 | . 91 98 58 Engine 11 | . 12 14 3 Wheel 9 | . 15 . . Flight 12 | . 10 28 6 Device 14 | . 15 14 13 Processor 7 | . 3 14 20 Protection 4 | . 6 . . Energy Gun 3 | . 1 10 3 Energy Cannon 7 | . 11 1 . Ballistic Gun 12 | . 13 14 4 Special Melee Weapon 1 | . . . 6 Naked Turns 2 | . 2 . . Heaviest Build 13 | 7 13 8 9 Greatest Support 32 | 20 32 8 14 Greatest Overweight (x) 1 | . 1 . . Average Overweight (x) . | . . . . Largest Inventory Capacity 5 | 5 5 5 5 Average Capacity 5 | 5 5 5 5 Most Carried 5 | 2 5 5 5 Average Carried 3 | . 3 4 2 Final Capacity 5 | 5 5 5 5 Final Carried 5 | 2 5 4 2 Class Distribution -------------------- 53% | Scavenger-Mutant 43% | Mutant 3% | Scavenger-Scout Dominant Class ---------------- Scavenger-Mutant | -10/Materials Scavenger-Mutant | -10/Mines Mutant | -9/Materials Resources | -11 -10 -10 -9 ----------- Run | Yrd Mat Min Mat Matter Collected 478 | 266 187 25 . Remotely . | . . . . Salvage Created 546 | 52 391 40 63 Parts 44 | 5 30 4 5 Haulers Intercepted . | . . . . Recyclers Shooed . | . . . . Parts Field Recycled . | . . . . Retrieved Matter . | . . . . Parts Self-Destructed . | . . . . Prevented . | . . . . Kills | -11 -10 -10 -9 ------- Run | Yrd Mat Min Mat Combat Hostiles Destroyed 16 | 1 12 1 2 Guns 6 | 1 2 1 2 Cannons 10 | . 10 . . Classes Destroyed 6 | 2 4 . . Worker 1 | . 1 . . Tunneler 1 | 1 . . . Operator 1 | . 1 . . Watcher 1 | . 1 . . Swarmer 7 | . 6 . 1 Grunt 9 | 1 6 1 1 Best Kill Streak 7 | 2 7 1 1 Combat Bots Only 6 | 1 6 1 1 Max Kills in Single Turn 1 | 1 1 1 1 Gunslinging . | . . . . Exploded . | . . . . Melee . | . . . . Uniques/NPCs Destroyed . | . . . . Combat | -11 -10 -10 -9 -------- Run | Yrd Mat Min Mat Hostile Shots Fired 199 | 2 85 21 91 Missed 68 | 1 22 12 33 Damage Taken 1482 | 12 639 105 726 Core 594 | . 165 24 405 Absorbed by Shields . | . . . . Core Remaining (%) 62 | 100 . 24 . Volleys Fired 74 | 6 41 15 12 Largest 2 | 2 2 2 2 Hottest 80 | 70 80 80 63 Shots Fired 134 | 12 79 24 19 Gun 99 | 12 53 15 19 Cannon 35 | . 26 9 . Launcher . | . . . . Special . | . . . . Kinetic 74 | 6 40 15 13 Thermal 60 | 6 39 9 6 Explosive . | . . . . Electromagnetic . | . . . . Robot Hit Streak 10 | 10 5 2 4 Robot Miss Streak 6 | 1 6 3 2 Penetration Max . | . . . . Secondary Targets 2 | . . . 2 Max Gunslinging Chain 1 | . . . 1 Shots Hit Robots 68 | 10 34 10 14 Core Hits 27 | 3 20 2 2 Critical Kills 1 | . . . 1 Critical Parts Destroyed 1 | . . 1 . Critical Strikes 3 | 1 . 1 1 Burn 1 | 1 . . . Destroy 2 | . . 1 1 Melee Attacks 5 | . . . 5 Impact . | . . . . Slashing . | . . . . Piercing . | . . . . Sneak Attacks . | . . . . Combat Hostiles . | . . . . Follow-up Attacks . | . . . . Damage Inflicted 886 | 104 519 88 175 Guns 555 | 104 206 70 175 Cannons 331 | . 313 18 . Explosions . | . . . . Melee . | . . . . Ramming . | . . . . Kinetic 347 | 41 94 70 142 Thermal 539 | 63 425 18 33 Explosive . | . . . . Electromagnetic . | . . . . Impact . | . . . . Slashing . | . . . . Piercing . | . . . . Highest Corruption 2 | . 2 2 . Average Corruption 1 | . 1 2 . Corruption Purged . | . . . . Corruption Blocked . | . . . . Effects 5 | . 5 . . Message Errors 2 | . 2 . . Data Loss (minor) 2 | . 2 . . Data Loss (major) 1 | . 1 . . Overload Shots . | . . . . Overflow Damage . | . . . . Projectiles . | . . . . Explosions . | . . . . Melee . | . . . . Knockbacks . | . . . . Impact . | . . . . Kinetic . | . . . . Secondary . | . . . . Self-Inflicted Damage . | . . . . Shots . | . . . . Rammed . | . . . . Targets Rammed . | . . . . Kicked . | . . . . Crushed . | . . . . Highest Temperature 383 | 106 383 327 17 Average Temperature 134 | 58 141 178 6 Received Heat Transfer 555 | 6 216 63 270 Effects 2 | . 2 . . Energy Bleed 1 | . 1 . . Short Circuit 1 | . 1 . . Siege Activations . | . . . . Robots Corrupted . | . . . . Combat Hostiles . | . . . . Parts Fried . | . . . . Impact Corruptions . | . . . . Robots Melted . | . . . . Combat Hostiles . | . . . . Parts Melted 1 | . 1 . . Heat Transferred 1370 | 259 999 37 75 Parts Sabotaged . | . . . . Parts Stolen . | . . . . Parts Stripped . | . . . . Power Chain Reactions . | . . . . Alert | -11 -10 -10 -9 ------- Run | Yrd Mat Min Mat Peak Influence 334 | 25 334 141 119 Initial 86 | . 16 86 54 Average 138 | 8 180 115 62 Maximum Alert Level 1 | . 1 . . Low Security (%) 72 | 100 54 100 100 Level 1 27 | . 45 . . Level 2 . | . . . . Level 3 . | . . . . Level 4 . | . . . . Level 5 . | . . . . High Security . | . . . . Max Security . | . . . . Squads Dispatched 5 | . 2 1 2 Investigation 3 | . 1 . 2 Extermination . | . . . . Reinforcement 1 | . 1 . . Assault 1 | . . 1 . Garrison . | . . . . Intercept . | . . . . Searches Triggered . | . . . . Construction Impeded . | . . . . Haulers Reinforced . | . . . . Active Scanning Responses . | . . . . Cargo Convoy Interrupts . | . . . . Stealth | -11 -10 -10 -9 --------- Run | Yrd Mat Min Mat Distress Signals 2 | . 2 . . Communications Jammed . | . . . . Distress Signals . | . . . . Times Spotted 37 | 1 18 4 14 Peak Tracking Total 7 | 1 7 2 7 Tactical Retreats 5 | . . 3 2 Traps | -11 -10 -10 -9 ------- Run | Yrd Mat Min Mat Traps Triggered 5 | . 4 . 1 Indirectly . | . . . . Trap Hack Attempts . | . . . . Triggered . | . . . . Disarmed . | . . . . Reprogrammed . | . . . . Reused . | . . . . Traps Extracted . | . . . . Installed 1 | . . 1 . Triggered . | . . . . Machines | -11 -10 -10 -9 ---------- Run | Yrd Mat Min Mat Machines Disabled 2 | . 1 . 1 Max in Single Turn 1 | . 1 . 1 Machines Repaired . | . . . . Machines Dismantled . | . . . . Machines Sabotaged . | . . . . Overloaded Fab Kills . | . . . . Hacking | -11 -10 -10 -9 --------- Run | Yrd Mat Min Mat Machines Accessed 10 | . 8 . 2 Terminals 7 | . 6 . 1 Fabricators . | . . . . Repair Stations 1 | . 1 . . Recycling Units 2 | . 1 . 1 Scanalyzers . | . . . . Garrison Access . | . . . . Total Hacks 32 | . 25 . 7 Successful 18 | . 16 . 2 Failed 14 | . 9 . 5 Catastrophic 3 | . 1 . 2 Database Lockouts . | . . . . Manual 5 | . 5 . . Terminals 23 | . 19 . 4 Fabricators . | . . . . Repair Stations 1 | . 1 . . Recycling Units 8 | . 5 . 3 Scanalyzers . | . . . . Garrison Access . | . . . . Terminal Hacks 12 | . 11 . 1 Record 2 | . 2 . . Emergency Access Points 2 | . 2 . . Terminal Index 1 | . 1 . . Alert Level 1 | . 1 . . Transport Status 1 | . 1 . . Reinforcement Status 1 | . 1 . . Hauler Manifests 1 | . 1 . . Registered Components 1 | . . . 1 Zone Layout 2 | . 2 . . Fabricator Hacks . | . . . . Repair Station Hacks . | . . . . Recycling Unit Hacks 6 | . 5 . 1 Recycle Component 1 | . 1 . . Process 2 | . 2 . . Report Inventory 2 | . 1 . 1 Retrieve Matter 1 | . 1 . . Scanalyzer . | . . . . Garrison Access Hacks . | . . . . Unauthorized Hacks . | . . . . Terminals . | . . . . Fabricators . | . . . . Repair Stations . | . . . . Recycling Units . | . . . . Scanalyzers . | . . . . Garrison Access . | . . . . Data Cores Recovered 1 | . 1 . . Used 1 | . 1 . . Hacking Detections 10 | . 8 . 2 Full Trace Events 5 | . 3 . 2 Feedback Events 2 | . 2 . . Corruption 2 | . 2 . . Feedback Blocked . | . . . . Robot Schematics Acquired . | . . . . Robots Built . | . . . . Authchips . | . . . . Time . | . . . . Total Robot Build Rating . | . . . . Part Schematics Acquired . | . . . . Parts Built . | . . . . Authchips . | . . . . Time . | . . . . Total Part Build Rating . | . . . . Parts Repaired . | . . . . Time . | . . . . Parts Recycled 1 | . 1 . . Recycled Matter 128 | . 128 . . Retrieved Matter 128 | . 128 . . Retrieved Components . | . . . . Parts Scanalyzed . | . . . . Part Schematics Acquired . | . . . . Parts Damaged . | . . . . Bothacking | -11 -10 -10 -9 ------------ Run | Yrd Mat Min Mat Used RIF Installer . | . . . . Robots Hacked 2 | . . . 2 Non-combat . | . . . . Combat 2 | . . . 2 Robot Hacks Applied 3 | . . . 3 parse_system 3 | . . . 3 Relay Couplers Released . | . . . . Fabnet Peak Effective % . | . . . . Robots Rewired . | . . . . Allies Hacked . | . . . . Hacks Repelled . | . . . . Allies | -11 -10 -10 -9 -------- Run | Yrd Mat Min Mat Total Allies . | . . . . Largest Group . | . . . . Highest-Rated Group . | . . . . Highest-Rated Ally . | . . . . Total Orders . | . . . . Ally Attacks . | . . . . Total Damage . | . . . . Kills . | . . . . Allies Corrupted . | . . . . Allies Melted . | . . . . Intel | -11 -10 -10 -9 ------- Run | Yrd Mat Min Mat Robot Analysis Total . | . . . . Derelict Logs Recovered 1 | . . 1 . Drone Launches . | . . . . Drone Recoveries . | . . . . Exploration | -11 -10 -10 -9 ------------- Run | Yrd Mat Min Mat Turns Passed 1016 | 74 617 164 161 Spaces Moved 1349 | 61 766 307 215 Core 169 | 16 1 . 152 Treads . | . . . . Legs . | . . . . Wheels 322 | 45 277 . . Hover . | . . . . Flight 858 | . 488 307 63 Fastest Speed 37 | 50 37 37 37 Average Speed 50 | 72 54 37 46 Slowest Speed 117 | 80 117 37 50 Overloaded Moves . | . . . . Propulsion Burnouts . | . . . . Robots Hopped 1 | . 1 . . Cave-ins Triggered . | . . . . Exploration Rate (%) 39 | 8 79 55 14 Regions Visited 3 Branch Regions 1 Pre-discovered Areas . | . . . . Known Exits Taken 2 | . 1 1 . Unknown Exits Taken 1 | 1 . . . Scrap Searched 2 | . . 2 . Spaces Dug . | . . . . Terrain Destroyed . | . . . . Melee . | . . . . Projectile . | . . . . AOE . | . . . . Terrain Rammed . | . . . . Walls Destroyed . | . . . . Machines Disabled . | . . . . Actions | -11 -10 -10 -9 --------- Run | Yrd Mat Min Mat Total 1561 | 80 887 339 255 Wait 24 | . 14 . 10 Move 1344 | 60 763 306 215 Hop 1 | . 1 . . Pick Up 50 | 8 29 8 5 Fast Attach . | . . . . Attach 31 | 6 17 1 7 Detach . | . . . . Swap 14 | . 13 . 1 Drop 17 | . 9 8 . Fire 74 | 6 41 15 12 Melee 5 | . . . 5 Ram . | . . . . Kick . | . . . . Crush . | . . . . Escape Stasis . | . . . . Rewire . | . . . . Trap 1 | . . 1 . Miscellaneous . | . . . . Route ------- -11/Scrapyard -10/Materials (discovered 4 exits: *Mat x3 / *Min) -10/Mines -9/Materials History --------- Turn | Location | Event 2 | -11/Scrapyard | Met Revision 17 40 | -11/Scrapyard | Discovered new exit (range 8) 75 | -11/Scrapyard | Entered Materials 260 | -10/Materials | Core integrity fell below 50% 279 | -10/Materials | Lost 4 parts (1p2n1u) 315 | -10/Materials | Build established: Mutant 398 | -10/Materials | Discovered new exit (range 10) 492 | -10/Materials | Discovered new exit (range 16) 539 | -10/Materials | Discovered new exit (range 11) 551 | -10/Materials | Discovered new exit (range 3) 553 | -10/Materials | Identified exit to Materials 563 | -10/Materials | Identified exit to Mines 621 | -10/Materials | Build established: Scavenger-Mutant 692 | -10/Materials | Entered Mines 740 | -10/Mines | Learned Materials interactive machine intel 771 | -10/Mines | Met a Derelict testing a Signal Generator 773 | -10/Mines | Found Signal Generator 824 | -10/Mines | Found a hidden stash of uninstalled traps 854 | -10/Mines | Discovered exit to Materials (range 5) 856 | -10/Mines | Entered Materials 856 | -9/Materials | Evolved 2 slots: Utility x2 857 | -9/Materials | Loaded intel: 18 interactive machine locations 925 | -9/Materials | Core integrity fell below 50% 955 | -9/Materials | Lost 9 parts (1p2n3u3w) 1014 | -9/Materials | Core integrity fell below 20% 1017 | -9/Materials | Destroyed by Y-45 Defender with Heavy Assault Rifle Last Messages --------------- T-07 Excavator is excavating. Connecting with Recycling Unit... >>Recycling(Report) Matter reserves: 0 Inventory: Adv. Visual Processing Unit (41%) Imp. Terrain Scan Processor (37%) ALERT: Suspicious activity at Recycling Unit M001. Dispatching Investigation squad. T-07 Excavator is excavating. Acquired Cooling System. Acquired Med. Matter Pod. Weight Redist. System destroyed. T-07 Excavator is excavating. U-05 Engineer lays Concrete. Jacked Y-45 Defender... >>parse_system Reading system data... Datajack destroyed. Critical hit (Burn: +37). Map ----- +----------------------------------------------------+ | ?????????????????????????????????????????????????? | | ?????????????????????????????????????????????????? | | ?????????????????????????????????????????????????? | | ?????????????????????????????????????????????????? | | ?????????????????????????????????????????????????? | | ?????????????????????????????????????????????????? | | ?????????????????????????????????????????????????? | | ?????????????????????????????????????????????????? | | ?????????????????????????????????????????????????? | | ?????????????????????????????????????????????????? | | ?????????????????????????????????????????????????? | | ????????????????T????????????????????????????????? | | ?????????????????????????????????????????????????? | | ??????????????????????????????????????????#???""?? | | ????????????????????????????????????????? #??S""?? | | ???????????????????????????????????????? #??""??? | | ??????????????????????????????????????? ##?????? | | ???????????????????????????########### #?????? | | ???????????????????????????# # ###???? | | ???????????????????????????# ??? | | ???????????????????????????# # #?????? | | ???????????????????????????#### #### ##### | | ?????????????????????????????## ################ | | ????????????????????########### # # | | ????????????????????# Y + + ! # | | ????????????????????# @ YYY# # # """ | | ????????????????????# """ """ # + """ # """ | | ????????????????????#g""" """ # # Y" # """ | | ????????????????????# """Y""" # # """ # | | ????????????????????# """g""" # # # | | ????????????????????# # ########## | | ????????????????????# # ############+#+# | | ????????????????????########### % | | ?????????????????????????????## % | | ?????????????????????????????## ################ | | ?????????????????????????????## ########### | | ????????????????????????????### ## # ???? | | ??????????????????############# ## # ???? | | ??????????????????############ # [[[ # ???? | | ??????????????????## # [[ # ???? | | ??????????????????## + [ # ???? | | ??????????????????## # # ???? | | ??????????????????## ####### # # ??? | | ??????????????????## ############# ##???# | | ??????????????????## ##???######## ##???# | | ??????????????????## ##?????????#########+##???? | | ??????????????????#######?????????######### ###### | | ?????????????????? ???? | | ????????????????????????????????????############## | | ????????????????????????????????????????????###??? | +----------------------------------------------------+ Best States ------------- Heat Dissipation 28 Energy Generation 10 Energy Capacity 250 Matter Stores 300 Matter Capacity 300 Sight Range 18 Robot Scan Range 14 Terrain Scan Density 10 Additional Mass Support 6 Armor Coverage 150 Evasion (%) 62 Targeting Accuracy 12 Authchip Count 1 Item Schematics ----------------- None Robot Schematics ------------------ None Fabricated ------------ Nothing Alien Tech Used ----------------- None Achievements -------------- Crack Shot Dynamic Key Shopping List Challenges ------------ None Game ------ Seed ChargeQuantumTriangulator Manual? 0 Play Time 00:48:45 Cumulative 2.5 hours Start 2024.04.12 @ 18:40:40 End 2024.04.12 @ 19:40:55 Sessions 1 Manual Loads 0 Difficulty Rogue Special Mode None Game No. 2 Rogue 2 Adventurer 0 Explorer 0 Win Type - Total 0 Types 0/0/0/0/0/0/0/0/0 Lore% 2 Gallery% 5 Achievement% 5 Wizard Run 0 Options --------- Layout 1 ASCII 0 Keyboard 0 Movement Mouse Keybinds 0 Fullscreen 2 Font 48/Smallcaps Map View 50x35 Zoom Use 0% Tactical HUD 0 Map Filters NONE Filters NONE Steam 1 RUN: 347e7a40-f58c-4236-ba2c-bf7050cf87c7